bitfinex-derivatives/quotes_ETHF0:USTF0_20251103
["timestamp","ask_amount","ask_price","bid_price","bid_amount"]
[1762140549196,1.62884,3753.7,3753.6,7.48421233]
[1762140549494,1.62884,3753.7,3753.6,3.2078]
[1762140549695,0.7001,3753.6,3753.2,3.2078]
[1762140549991,0.7001,3753.6,3753.2,7.48421233]
[1762140550201,1.1493,3753.5,3753.4,4.27641233]
[1762140550391,1.1493,3753.5,3753.2,3.2078]
[1762140550992,1.1493,3753.3,3753.2,3.2078]
[1762140551199,1.1493,3753.3,3752.7,3.2078]
[1762140551601,0.7001,3753.0,3752.9,4.27641233]
[1762140552201,1.17973,3753.0,3752.9,4.27641233]
[1762140552394,2.32903,3753.0,3752.9,4.27641233]
[1762140553600,1.17981,3752.4,3752.3,3.21082]
[1762140553899,1.17981,3752.4,3751.6,0.4798]
[1762140553900,0.70339715,3752.4,3751.9,3.2078]
[1762140554694,0.70339715,3752.4,3751.9,3.20971389]
[1762140554998,0.59909715,3752.4,3751.9,3.20971389]
[1762140555196,0.59909715,3752.4,3752.0,4.27641233]
[1762140555397,0.59909715,3752.4,3752.1,4.27641233]
[1762140555697,0.59909715,3752.4,3752.0,4.27641233]
[1762140556101,0.59909715,3752.4,3752.1,4.27641233]
[1762140556300,0.59909715,3752.4,3752.0,4.27641233]
[1762140556698,0.59909715,3752.4,3752.1,4.27641233]
[1762140556898,0.59909715,3752.4,3752.0,4.27641233]
[1762140557301,0.59909715,3752.4,3752.1,4.27641233]
[1762140557500,0.59909715,3752.4,3752.3,4.27641233]
[1762140558000,1.66219715,3752.4,3752.3,4.27641233]
[1762140559699,0.59909715,3752.4,3752.3,4.27641233]
[1762140560510,0.59909715,3752.4,3752.3,5.13401233]
[1762140560910,1.66219715,3752.4,3752.3,4.27641233]
[1762140561502,0.59909715,3752.4,3752.3,4.27641233]
[1762140561898,0.59909715,3752.4,3751.9,0.00191389]
[1762140561899,1.0631,3752.0,3751.9,0.00191389]
[1762140562102,1.54286,3752.0,3751.9,0.00191389]
[1762140562300,2.13866,3752.0,3751.9,4.27832622]
[1762140563003,1.6589,3751.5,3751.4,3.2078]
[1762140563402,1.6589,3751.5,3751.4,6.93312622]
[1762140563601,1.6589,3751.5,3751.4,3.72532622]
[1762140563803,1.6589,3751.5,3750.9,3.2078]
[1762140564099,1.6589,3751.5,3750.9,6.93558724]
[1762140564506,1.6589,3751.5,3750.9,3.21026102]
[1762140565017,1.6589,3751.5,3750.9,6.93558724]
[1762140565205,1.6589,3751.5,3750.9,3.21026102]
[1762140565711,1.6589,3751.5,3750.9,6.93558724]
[1762140565904,1.6589,3751.5,3750.9,3.21026102]
[1762140567614,0.5841,3751.0,3750.9,3.21026102]
[1762140567811,0.5958,3751.5,3751.0,3.72532622]
[1762140568006,3.2078,3751.7,3751.4,0.767]
[1762140568308,3.2078,3751.7,3751.6,0.767]
[1762140568607,3.2078,3751.7,3751.6,4.49232622]
[1762140568807,0.5958,3752.0,3751.6,4.49232622]
[1762140569010,0.5958,3752.0,3751.3,13.3188]
[1762140569605,3.2078,3752.1,3752.0,0.767]
[1762140570008,3.2078,3752.1,3752.0,4.49232622]
[1762140571008,3.68754,3752.1,3752.0,4.49232622]
[1762140571812,3.2078,3752.1,3752.0,4.49232622]
[1762140572007,0.47974,3752.2,3752.0,4.49232622]
[1762140572209,0.47974,3752.2,3752.1,3.72532622]
[1762140572408,0.47978,3751.9,3751.8,0.767]
[1762140572709,0.47972,3752.3,3751.9,4.20508622]
[1762140573011,0.00329715,3752.4,3752.3,0.767]
[1762140573407,0.00329715,3752.4,3752.3,4.49232622]
[1762140573707,0.00329715,3752.4,3752.3,14.59832622]
[1762140574307,0.00329715,3752.4,3752.3,4.49232622]
[1762140574507,0.00329715,3752.4,3752.3,3.72532622]
[1762140574813,0.00329715,3752.4,3752.3,4.49232622]
[1762140575210,0.00329715,3752.4,3752.3,3.72532622]
[1762140576417,0.00329715,3752.4,3752.3,4.49232622]
[1762140577017,3.7919,3753.5,3753.0,0.7637]
[1762140577414,3.7919,3753.5,3753.4,3.72532622]
[1762140578014,3.79378399,3753.5,3753.4,3.72532622]
[1762140578217,4.76509503,3753.5,3753.4,3.72532622]
[1762140579110,3.79378399,3753.5,3753.4,3.72532622]
[1762140579711,3.79378399,3753.5,3752.6,3.2078]
[1762140579712,4.82578399,3753.5,3752.6,3.2078]
[1762140579909,4.82578399,3753.5,3752.8,3.72532622]
[1762140580115,4.82578399,3753.5,3753.0,3.72532622]
[1762140580415,4.82578399,3753.5,3752.9,3.72532622]
[1762140580715,0.5841,3753.0,3752.8,3.72532622]
[1762140581115,0.5841,3753.0,3752.9,3.72532622]
[1762140581517,1.6161,3753.0,3752.9,3.72532622]
[1762140582719,0.5841,3753.0,3752.9,3.72532622]
[1762140582920,3.79378399,3753.5,3752.9,4.48902622]
[1762140583118,3.79378399,3753.5,3752.9,0.47963]
[1762140583424,3.79378399,3753.5,3753.4,0.7637]
[1762140583618,3.20968399,3753.5,3753.4,0.7637]
[1762140583818,3.68924399,3753.5,3753.4,4.48902622]
[1762140585224,0.47967,3752.7,3752.6,3.2078]
[1762140585419,0.47967,3752.7,3752.6,17.58682622]
[1762140585918,0.47967,3752.7,3752.6,7.49582622]
[1762140586124,0.47967,3752.7,3752.6,6.93312622]
[1762140586421,0.47967,3752.7,3752.6,7.49582622]
[1762140586622,0.47967,3752.7,3752.6,6.93312622]
[1762140586823,1.40987,3752.7,3752.6,3.2078]
[1762140588019,0.47967,3752.7,3752.6,3.72532622]
[1762140589830,0.5611,3753.0,3752.6,4.28802622]
[1762140590025,0.47964,3752.9,3752.8,3.72532622]
[1762140590347,0.47969,3752.5,3752.4,0.5627]
[1762140590826,0.47968,3752.6,3752.5,0.5627]
[1762140591123,0.00188399,3753.5,3753.1,0.5627]
[1762140591325,0.00188399,3753.5,3752.5,3.68748]
[1762140591326,0.47958,3753.4,3753.3,3.72532622]
[1762140591521,0.00188399,3753.5,3752.7,10.56466]
[1762140591719,0.48144399,3753.5,3753.4,0.5627]
[1762140592120,0.48144399,3753.5,3753.4,4.28802622]
[1762140592623,0.00188399,3753.5,3753.4,4.28802622]
[1762140596324,0.56298399,3753.5,3753.4,3.72532622]
[1762140596528,4.70098399,3753.5,3753.4,3.72532622]
[1762140596828,1.49318399,3753.5,3753.4,3.72532622]
[1762140597528,0.56298399,3753.5,3753.4,3.72532622]
[1762140599923,1.49318399,3753.5,3753.4,3.72532622]
[1762140600324,4.70098399,3753.5,3753.4,3.72532622]
[1762140600517,1.04079,3752.5,3752.4,3.7705]
[1762140601032,1.04079,3752.5,3752.4,7.49582622]
[1762140601429,0.47969,3752.5,3752.4,7.49582622]
[1762140601825,0.47969,3752.5,3752.4,4.28802622]
[1762140602326,1.04079,3752.5,3752.4,4.28802622]
[1762140602826,1.04079,3752.5,3752.4,3.72532622]
[1762140603023,1.97099,3752.5,3752.4,3.72532622]
[1762140603232,0.47974,3752.1,3752.0,3.2078]
[1762140603431,1.76052,3752.0,3751.6,3.2078]
[1762140603729,0.47985,3751.3,3751.2,3.2078]
[1762140604228,3.2078,3751.9,3751.2,6.93312622]
[1762140604536,0.4797,3752.5,3752.4,0.5627]
[1762140604837,0.4797,3752.5,3752.4,4.28802622]
[1762140606126,0.47967,3752.7,3752.6,0.5627]
[1762140606327,0.47966,3752.8,3752.7,0.5627]
[1762140606730,0.47966,3752.8,3752.7,4.28802622]
[1762140606925,0.9302,3752.3,3751.3,3.2078]
[1762140607125,0.5611,3751.2,3751.1,3.72532622]
[1762140607427,0.5611,3751.2,3750.4,3.2078]
[1762140607629,0.5611,3751.2,3751.1,3.72532622]
[1762140607926,0.9302,3751.0,3750.4,3.2078]
[1762140608124,0.9302,3751.0,3750.0,3.2078]
[1762140608326,8.9302,3751.0,3750.0,3.2078]
[1762140608625,4.82493864,3750.8,3750.0,3.2078]
[1762140608825,0.5611,3750.6,3750.0,3.2078]
[1762140609234,0.9302,3750.1,3750.0,3.2078]
[1762140609442,2.5507349,3750.1,3750.0,0.00265162]
[1762140609735,0.93359626,3750.1,3750.0,0.00265162]
[1762140610924,0.00339626,3750.1,3750.0,0.00265162]
[1762140611134,0.00339626,3750.1,3750.0,4.29317784]
[1762140611937,0.00339626,3750.1,3750.0,3.72797784]
[1762140612336,0.93359626,3750.1,3750.0,0.00265162]
[1762140612833,0.00339626,3750.1,3750.0,3.72797784]
[1762140613139,0.93359626,3750.1,3750.0,0.00265162]
[1762140613539,0.00339626,3750.1,3750.0,3.72797784]
[1762140613735,0.00339626,3750.1,3750.0,0.00265162]
[1762140613939,0.93359626,3750.1,3750.0,0.00265162]
[1762140614232,0.93359626,3750.1,3749.7,0.02666916]
[1762140614437,0.9302,3748.8,3748.7,3.2078]
[1762140614633,0.9302,3748.4,3748.3,3.2078]
[1762140615031,0.48027,3748.0,3747.9,3.2078]
[1762140615428,0.48034,3747.4,3747.2,0.47123068]
[1762140615832,0.874,3747.3,3747.2,0.47123068]
[1762140616340,0.874,3747.3,3746.9,3.2078]
[1762140616341,8.874,3747.3,3746.9,3.2078]
[1762140616638,2.49113864,3747.0,3746.9,0.00204645]
[1762140617239,0.874,3747.0,3746.9,0.00204645]
[1762140617438,0.874,3747.0,3746.2,3.2078]
[1762140617439,0.493,3746.4,3746.2,3.2078]
[1762140617738,3.7008,3746.4,3745.8,3.2078]
[1762140617929,0.493,3746.4,3745.8,3.68835]
[1762140618129,0.493,3746.4,3746.0,6.93312622]
[1762140618334,0.493,3746.4,3746.0,3.2078]
[1762140618634,0.493,3746.4,3746.0,0.00218824]
[1762140618635,0.874,3746.1,3746.0,0.00218824]
[1762140619341,3.7008,3746.4,3746.0,0.00218824]
[1762140619536,0.874,3745.7,3745.2,3.2078]
[1762140619743,0.493,3745.6,3745.2,3.2078]
[1762140620242,0.874,3745.3,3744.7,3.23450477]
[1762140620643,1.61713864,3745.5,3744.9,3.72532622]
[1762140620935,4.82493864,3746.3,3745.4,3.2078]
[1762140621138,0.874,3745.5,3745.4,3.2078]
[1762140621335,0.874,3745.5,3744.7,0.02957182]
[1762140621336,0.874,3745.5,3745.0,3.2078]
[1762140621534,0.493,3744.8,3744.7,0.02957182]
[1762140621739,1.367,3744.8,3744.7,0.02957182]
[1762140622539,0.874,3743.6,3743.5,3.2078]
[1762140622728,0.493,3743.2,3742.7,3.2078]
[1762140622933,0.493,3743.2,3742.9,3.72532622]
[1762140623138,0.493,3743.2,3741.3,0.20960706]
[1762140623139,0.493,3743.2,3743.1,3.72532622]
[1762140623341,0.493,3742.4,3741.7,3.2078]
[1762140623538,0.493,3742.4,3741.7,3.69092973]
[1762140623738,0.493,3742.4,3741.7,5.57688595]
[1762140624040,0.493,3742.4,3741.7,3.69093973]
[1762140624240,3.2078,3742.7,3741.7,3.20985973]
[1762140624434,3.2078,3742.7,3741.9,2.36702622]
[1762140624735,0.49506151,3743.2,3742.2,3.2078]
[1762140624937,3.68873,3742.9,3742.7,2.36702622]
[1762140625145,3.68873,3742.9,3742.8,2.36702622]
[1762140625342,0.48097,3742.6,3742.4,2.36702622]
[1762140625543,0.48097,3742.6,3741.8,3.2078]
[1762140625544,0.48105,3742.0,3741.8,3.2078]
[1762140625735,0.48106,3741.8,3741.7,0.00205973]
[1762140625932,0.5094,3741.6,3738.4,0.5231]
[1762140626132,1.61713864,3739.8,3738.4,0.5231]
[1762140626438,1.61713864,3739.9,3738.4,0.5231]
[1762140626740,1.61713864,3739.9,3737.6,2.6591]
[1762140626741,0.4827,3739.5,3737.9,3.2078]
[1762140626945,3.2078,3739.4,3737.6,0.5231]
[1762140627235,4.82493864,3737.7,3737.6,0.00337291]
[1762140627633,4.82493864,3737.7,3736.8,0.5231]
[1762140627833,3.2078,3736.9,3736.0,0.165]
[1762140628036,12.03951,3737.9,3735.0,0.5231]
[1762140628037,4.82493864,3736.5,3735.9,2.36702622]
[1762140628232,4.82493864,3736.5,3735.2,2.36702622]
[1762140628540,3.21112546,3736.5,3735.6,3.2078]
[1762140628839,0.00332546,3736.5,3736.0,0.5231]
[1762140629046,3.2078,3737.1,3736.4,2.36702622]
[1762140629234,3.2078,3738.0,3736.8,3.2078]
[1762140629434,4.82493864,3736.9,3735.4,3.2078]
[1762140629638,1.61713864,3736.5,3735.3,3.2078]
[1762140629938,0.00219861,3736.5,3736.4,3.2078]
[1762140630146,3.2078,3738.3,3737.0,0.5231]
[1762140630342,3.2078,3737.9,3737.0,0.5231]
[1762140630539,3.2078,3737.5,3737.0,0.5231]
[1762140630733,3.2078,3737.5,3736.0,3.7309]
[1762140630942,3.2078,3736.3,3735.2,3.69259585]
[1762140631138,3.2078,3736.8,3735.7,3.2078]
[1762140631334,3.2078,3737.2,3736.3,3.2078]
[1762140631547,0.00270875,3737.5,3737.0,3.7309]
[1762140631843,0.00270875,3737.5,3737.0,0.5231]
[1762140632141,0.00270875,3737.5,3737.0,3.7309]
[1762140632343,0.00270875,3737.5,3737.2,0.48165]
[1762140632546,3.2078,3738.3,3738.0,0.5231]
[1762140632938,3.2078,3738.3,3737.0,3.7309]
[1762140633343,3.2078,3738.3,3737.0,0.5231]
[1762140633542,3.21110345,3738.3,3737.3,3.2078]
[1762140633842,3.05,3740.3,3737.2,0.48165]
[1762140633843,3.2078,3739.2,3738.6,0.48147]
[1762140634143,2.10562218,3740.6,3739.0,3.7309]
[1762140634144,3.2078,3740.2,3739.0,3.7309]
[1762140634532,3.2078,3741.1,3740.0,3.7309]
[1762140634732,3.2078,3740.5,3740.0,0.5231]
[1762140634941,3.21101264,3740.5,3740.3,0.48125]
[1762140635141,0.00321264,3740.5,3740.0,0.5251355]
[1762140635838,3.2078,3740.4,3740.0,0.5251355]
[1762140636044,3.2078,3740.4,3740.0,0.0020355]
[1762140636340,3.2078,3740.4,3739.0,3.7309]
[1762140636542,3.2078,3739.8,3739.0,3.7309]
[1762140636846,0.00321264,3740.5,3740.0,0.5231]
[1762140637236,0.00321264,3740.5,3740.1,0.48127]
[1762140637438,0.00321264,3740.5,3740.4,3.2078]
[1762140637845,3.2078,3741.2,3740.4,3.2078]
[1762140638042,3.2078,3741.2,3741.0,0.5231]
[1762140638540,0.48123,3740.6,3740.1,0.00337588]
[1762140638847,3.2078,3740.5,3740.1,0.00337588]
[1762140639038,0.00219164,3740.6,3740.1,0.00337588]
[1762140639747,0.48126,3740.3,3740.1,0.00337588]
[1762140640242,3.2078,3740.4,3740.1,0.00337588]
[1762140640847,0.00219164,3740.6,3740.4,0.48123]
[1762140641039,3.2078,3741.8,3740.5,3.2078]
[1762140641235,3.2078,3741.8,3741.1,0.48115]
[1762140641439,3.68881,3742.2,3742.0,0.5231]
[1762140641742,3.68881,3742.2,3741.0,0.5231]
[1762140641743,3.2078,3742.2,3741.0,0.5231]
[1762140641949,1.20246,3742.5,3741.0,0.5231]
[1762140641950,3.2078,3741.6,3741.0,0.5231]
[1762140642248,3.2078,3741.6,3740.5,3.2078]
[1762140642249,3.20984376,3741.6,3740.5,13.3978]
[1762140642435,0.00204376,3741.6,3741.4,3.2078]
[1762140643043,3.2078,3742.1,3742.0,0.5231]
[1762140643250,3.2078,3742.6,3742.4,0.48097]
[1762140643440,0.48082,3743.8,3743.0,1.004]
[1762140643634,3.2078,3744.3,3743.2,3.2078]
[1762140643839,3.2078,3744.3,3743.4,0.48085]
[1762140643840,3.68854,3744.3,3743.4,0.48085]
[1762140644035,3.21087491,3744.3,3743.4,0.00242035]
[1762140644243,0.00307491,3744.3,3744.0,0.5231]
[1762140645443,3.2078,3746.4,3745.0,0.6374]
[1762140645745,3.2078,3745.1,3744.0,0.5231]
[1762140645943,2.10562218,3745.5,3744.0,3.7309]
[1762140645944,3.2078,3744.7,3744.0,3.7309]
[1762140646151,0.4807,3744.6,3744.0,3.7309]
[1762140646341,3.2078,3744.7,3744.0,3.7309]
[1762140646546,0.48074,3744.4,3744.0,3.7309]
[1762140646849,0.48076,3744.2,3744.0,3.7309]
[1762140647054,0.48076,3744.2,3744.0,3.2078]
[1762140647451,0.48072,3744.5,3744.0,3.8452]
[1762140647651,0.00340114,3744.6,3744.0,3.8452]
[1762140647846,0.48074,3744.4,3744.0,3.8452]
[1762140648458,0.00340114,3744.6,3744.0,3.8452]
[1762140648851,3.2078,3744.5,3744.0,3.2078]
[1762140649053,0.48077,3744.1,3744.0,3.2078]
[1762140649250,0.48076,3744.2,3744.0,3.2078]
[1762140649750,0.48083,3743.6,3743.4,0.00242035]
[1762140649950,0.48093,3742.8,3742.7,3.2078]
[1762140650353,0.48091,3743.1,3742.7,3.2078]
[1762140650555,0.48088,3743.3,3742.7,3.2078]
[1762140650754,3.2078,3744.0,3742.7,3.2078]
[1762140650953,0.48081,3743.8,3743.1,3.2078]
[1762140651146,3.2078,3744.0,3743.1,3.2078]
[1762140651459,0.48077,3744.2,3743.8,3.2078]
[1762140651756,3.21120114,3744.6,3743.8,3.2078]
[1762140651960,0.29608417,3744.5,3743.8,3.2078]
[1762140652154,3.21120114,3744.6,3743.8,3.2078]
[1762140652357,0.48079,3744.0,3743.8,3.2078]
[1762140652852,0.48082,3743.8,3743.3,3.2078]
[1762140653153,1.20184,3744.4,3743.3,3.2078]
[1762140653154,0.48084,3743.6,3743.3,3.2078]
[1762140653353,0.48085,3743.5,3743.3,3.2078]
[1762140653755,0.4809,3743.1,3743.0,0.6374]
[1762140655450,0.48093,3742.9,3742.7,0.00243342]
[1762140656264,3.2078,3743.8,3742.7,0.00243342]
[1762140656451,0.48088,3743.3,3743.1,0.6374]
[1762140656758,0.48093,3742.9,3742.7,0.00243342]
[1762140657561,3.2078,3743.3,3742.7,0.00243342]
[1762140657863,0.48093,3742.9,3742.7,0.00243342]
[1762140658361,3.2078,3743.3,3742.7,0.00243342]
[1762140658657,0.48093,3742.9,3742.7,0.00243342]
[1762140658855,3.2078,3743.3,3742.7,0.00243342]
[1762140659057,0.48093,3742.8,3742.7,0.00243342]
[1762140660358,0.48088,3743.2,3743.1,0.6374]
[1762140660658,3.2078,3744.0,3743.1,3.8452]
[1762140660855,0.48088,3743.3,3743.1,0.6374]
[1762140661052,0.48106,3741.8,3741.7,3.2078]
[1762140661252,0.48111,3741.4,3741.3,3.2078]
[1762140661458,0.48111,3741.4,3741.0,0.6374]
[1762140661459,3.2078,3741.6,3741.0,0.6374]
[1762140661651,0.4811,3741.5,3741.3,3.2078]
[1762140661854,0.4811,3741.5,3741.0,0.6374]
[1762140661855,0.48115,3741.2,3741.0,0.6374]
[1762140662053,0.00200258,3741.2,3741.0,0.6396648]
[1762140662259,3.2078,3742.3,3741.1,0.48115]
[1762140662466,0.4811,3741.6,3741.4,3.2078]
[1762140662651,0.29745791,3741.5,3741.4,3.2078]
[1762140662855,0.97907468,3741.5,3741.4,3.2078]
[1762140663248,4.18687468,3741.5,3741.0,0.0022648]
[1762140663455,0.48125,3740.4,3739.9,3.2078]
[1762140663662,0.29745791,3740.3,3739.9,3.2078]
[1762140664058,0.48125,3740.4,3739.9,3.2078]
[1762140664059,0.48129,3740.1,3739.9,3.2078]
[1762140664562,0.48129,3740.1,3739.7,0.02674047]
[1762140664563,0.48131,3739.9,3739.7,0.02674047]
[1762140664761,0.48137,3739.4,3739.3,0.47123068]
[1762140664961,0.28266022,3739.4,3739.3,0.47329529]
[1762140665164,4.60956313,3740.3,3739.5,0.6374]
[1762140665369,0.96592366,3740.2,3739.9,3.2078]
[1762140665662,0.96592366,3740.1,3739.9,3.2078]
[1762140665967,0.48125,3740.4,3739.9,3.2078]
[1762140666260,3.2078,3741.2,3740.4,0.6374]
[1762140666469,0.96271921,3741.1,3740.4,0.6374]
[1762140666768,11.57533851,3741.5,3740.4,0.6374]
[1762140666769,0.96271921,3741.0,3740.7,3.2078]
[1762140666958,0.96271921,3740.9,3740.7,3.2078]
[1762140667262,0.96271921,3740.8,3740.7,3.2078]
[1762140667658,1.16111142,3740.8,3740.4,0.6374]
[1762140667966,0.48126,3740.3,3740.2,3.2078]
[1762140668463,0.48137,3739.5,3739.3,0.47329529]
[1762140668654,3.4803849,3739.4,3739.3,0.47329529]
[1762140668856,4.15990319,3739.4,3739.3,0.47329529]
[1762140669056,0.48147,3738.6,3738.5,3.2078]
[1762140669272,0.4815,3738.4,3738.1,3.2078]
[1762140669466,3.2078,3739.0,3738.1,3.2078]
[1762140669668,3.2078,3739.8,3738.9,3.2078]
[1762140669965,1.3861479,3739.5,3739.4,3.68916]
[1762140670266,1.3861479,3739.5,3738.9,0.48434479]
[1762140670565,1.3861479,3739.5,3738.9,0.00291479]
[1762140670771,0.48138,3739.4,3738.9,3.21071479]
[1762140671064,0.00295704,3739.8,3739.5,0.6374]
[1762140671660,0.00295704,3739.8,3739.7,0.48133]
[1762140672068,3.2078,3740.5,3739.5,0.6374]
[1762140672264,3.2078,3740.5,3739.3,3.2078]
[1762140672568,3.2078,3740.5,3738.9,0.00291479]
[1762140672569,0.48142,3739.1,3738.9,0.00291479]
[1762140672762,0.48141,3739.1,3738.9,0.00291479]
[1762140672962,0.00346698,3739.1,3738.9,0.00291479]
[1762140673267,3.2078,3740.0,3739.0,3.2078]
[1762140673469,3.2078,3740.4,3739.5,3.2078]
[1762140673767,3.2078,3741.0,3740.3,0.48124]
[1762140673961,3.2078,3741.0,3740.5,3.68902]
[1762140674157,3.2078,3741.0,3740.5,3.2078]
[1762140674373,0.4812,3740.8,3740.0,0.6374]
[1762140674669,0.4812,3740.8,3740.2,3.68906]
[1762140674865,0.48127,3740.3,3739.5,1.11875]
[1762140675075,0.48128,3740.2,3739.8,3.2078]
[1762140675257,3.2078,3740.6,3739.5,0.6374]
[1762140675658,1.85078555,3740.9,3739.5,0.6374]
[1762140675659,1.85078555,3740.9,3740.4,0.6125]
[1762140675863,0.48123,3740.6,3740.4,0.6125]
[1762140676068,0.48125,3740.4,3739.7,3.2078]
[1762140676360,1.85078555,3740.9,3740.4,0.6125]
[1762140676668,1.85078555,3740.9,3740.7,0.4812]
[1762140676865,1.85078555,3740.9,3740.7,3.689]
[1762140677264,3.23320256,3741.9,3741.7,0.48107]
[1762140677466,3.23320256,3741.9,3741.8,3.2078]
[1762140678075,3.23320256,3741.9,3741.3,3.8203]
[1762140678268,3.23658487,3741.9,3741.8,0.00338528]
[1762140678477,7.8266608,3743.4,3742.0,1.2026]
[1762140678664,4.6188608,3743.4,3743.3,3.2078]
[1762140678972,4.6188608,3743.4,3742.9,3.68871]
[1762140679373,4.6188608,3743.4,3743.0,0.4809]
[1762140679668,4.62196232,3743.4,3742.9,3.2078]
[1762140679861,4.62196232,3743.4,3743.1,0.48088]
[1762140680065,0.48893721,3743.4,3743.3,3.2078]
[1762140680265,0.00310152,3743.4,3743.3,3.2078]
[1762140680570,7.39017728,3744.5,3743.4,0.48086]
[1762140680773,7.39017728,3744.5,3743.9,0.48079]
[1762140680972,7.39017728,3744.5,3744.2,3.2078]
[1762140681170,0.48073,3744.4,3743.8,3.2078]
[1762140681377,7.39017728,3744.5,3743.8,13.4098]
[1762140681670,0.00264002,3744.5,3744.2,3.2078]
[1762140681977,0.00264002,3744.5,3744.3,0.48073]
[1762140682278,0.00264002,3744.5,3744.2,3.2078]
[1762140682969,0.48074,3744.3,3744.2,3.2078]
[1762140683169,0.00264002,3744.5,3744.2,3.2078]
[1762140683474,0.48073,3744.4,3744.2,3.2078]
[1762140683775,0.5835,3744.0,3743.8,3.2078]
[1762140683973,1.06429,3744.0,3743.8,3.2078]
[1762140684868,0.48087,3743.3,3743.2,3.2078]
[1762140685067,0.48087,3743.3,3741.8,0.00338528]
[1762140685068,0.48096,3742.6,3742.5,9.8948]
[1762140685268,0.48103,3742.1,3741.8,0.00338528]
[1762140685480,0.751,3742.2,3741.8,0.00338528]
[1762140685481,3.9588,3742.2,3741.8,0.00338528]
[1762140685772,0.751,3742.2,3741.8,0.00338528]
[1762140686175,0.751,3742.2,3741.8,3.21118528]
[1762140686365,3.2078,3742.7,3741.8,20.11198528]
[1762140686571,0.5835,3743.1,3742.7,0.48094]
[1762140686768,3.2078,3743.3,3742.4,3.2078]
[1762140686975,0.751,3743.1,3742.6,0.48095]
[1762140687582,0.751,3743.1,3742.4,13.4268]
[1762140687781,0.751,3743.1,3742.6,0.48095]
[1762140688181,1.2319,3743.1,3742.4,13.90778]
[1762140688378,3.2078,3743.3,3742.7,0.48094]
[1762140688781,0.751,3743.0,3742.4,3.68878]
[1762140688976,0.751,3743.0,3742.5,10.207]
[1762140689277,1.23191,3743.0,3742.5,10.207]
[1762140689489,1.23191,3743.0,3742.4,3.2078]
[1762140689490,0.48097,3742.6,3742.4,3.2078]
[1762140689675,0.751,3742.2,3741.9,3.433]
[1762140690081,0.751,3742.2,3741.8,3.21118528]
[1762140690082,0.48105,3741.9,3741.8,0.00338528]
[1762140690585,3.9588,3742.2,3740.9,3.2078]
[1762140690586,0.48116,3741.1,3740.9,3.2078]
[1762140690775,0.751,3741.3,3740.4,3.2078]
[1762140690979,0.751,3741.3,3738.7,1.89997097]
[1762140690980,3.68901,3740.7,3740.0,3.2078]
[1762140691180,0.48121,3740.7,3740.0,3.2078]
[1762140691474,0.751,3741.3,3740.0,9.8918]
[1762140691679,0.00215782,3741.3,3741.0,3.2078]
[1762140691879,0.00215782,3741.3,3741.2,0.48113]
[1762140692188,0.00215782,3741.3,3741.1,10.68915]
[1762140692385,3.9588,3742.2,3741.7,0.48107]
[1762140692687,0.48098,3742.5,3741.9,0.48104]
[1762140692885,3.2078,3742.6,3741.4,3.68891]
[1762140693084,0.48099,3742.4,3741.6,10.68408]
[1762140693279,0.48102,3742.2,3741.6,10.68408]
[1762140693487,0.48412974,3742.2,3741.6,10.203]
[1762140693685,0.48412974,3742.2,3741.6,10.68408]
[1762140694187,0.00310974,3742.2,3741.9,3.68884]
[1762140694486,0.00310974,3742.2,3742.0,0.48103]
[1762140694883,0.00310974,3742.2,3741.9,3.68884]
[1762140695078,0.00310974,3742.2,3741.9,3.2078]
[1762140695389,0.00310974,3742.2,3742.0,0.48103]
[1762140695597,0.751,3743.0,3742.1,10.188]
[1762140695786,0.751,3743.0,3742.3,3.2078]
[1762140695994,1.23192,3743.0,3742.4,0.48098]
[1762140696189,1.23192,3743.0,3742.3,3.2078]
[1762140696390,1.23192,3743.0,3742.3,3.68879]
[1762140696598,0.75379744,3743.0,3742.5,0.48097]
[1762140696794,0.48095,3742.8,3742.3,3.2078]
[1762140697004,1.23471744,3743.0,3742.3,3.2078]
[1762140697202,0.75379744,3743.0,3742.5,0.48096]
[1762140697492,0.00279744,3743.0,3742.7,3.68874]
[1762140697694,3.2078,3743.6,3743.2,0.48087]
[1762140697900,0.48071,3744.6,3743.3,10.179]
[1762140698092,0.751,3745.0,3744.6,0.4807]
[1762140698093,3.9588,3745.0,3744.6,0.4807]
[1762140698291,3.2078,3745.6,3744.6,13.3858]
[1762140698691,0.00263694,3745.6,3745.1,3.2078]
[1762140699091,0.48321694,3745.6,3745.1,3.2078]
[1762140699295,0.00263694,3745.6,3745.4,0.48059]
[1762140699495,3.2078,3746.0,3745.6,0.48057]
[1762140699708,3.2078,3746.0,3745.5,13.3878]
[1762140699997,0.48045,3746.6,3745.5,3.2078]
[1762140700202,0.48046,3746.5,3745.5,3.2078]
[1762140700388,3.2078,3746.3,3745.7,0.48056]
[1762140700594,3.2078,3746.3,3745.6,3.995]
[1762140701297,0.00297383,3746.5,3745.9,0.48053]
[1762140701491,0.00297383,3746.5,3745.8,0.48054]
[1762140701688,0.00297383,3746.5,3745.6,3.995]
[1762140701892,3.2078,3747.3,3746.1,3.2078]
[1762140702092,3.2078,3747.3,3746.5,3.2078]
[1762140702304,0.48036,3747.4,3746.6,10.162]
[1762140702496,0.48042,3746.8,3746.5,3.2078]
[1762140702695,0.751,3747.0,3746.5,13.3668]
[1762140702891,0.48044,3746.7,3746.5,13.3668]
[1762140703101,1.23440055,3747.0,3746.6,10.159]
[1762140703292,0.75400055,3747.0,3746.5,3.2078]
[1762140703498,3.2078,3746.6,3745.7,3.2078]
[1762140703701,0.48051,3746.2,3745.7,3.2078]
[1762140703897,3.2078,3746.6,3745.7,3.2078]
[1762140704104,3.2078,3746.6,3745.7,3.68835]
[1762140704399,0.48048,3746.4,3745.8,10.157]
[1762140704800,3.2078,3746.6,3745.8,10.157]
[1762140704997,3.2078,3746.6,3745.7,3.2078]
[1762140704998,1.18635,3745.8,3745.7,3.2078]
[1762140705202,0.48059,3745.5,3745.4,0.0019814]